bitfinex-derivatives/quotes_ETHF0:USTF0_20241026
["timestamp","ask_amount","ask_price","bid_price","bid_amount"]
[1729980945808,4.4637,2487.9,2487.8,0.40242]
[1729980946508,5.76622966,2487.9,2487.8,0.40242]
[1729980948715,6.16862966,2487.9,2487.8,0.40242]
[1729980950714,6.16862966,2487.9,2487.7,0.40242]
[1729980950918,1.30252966,2487.8,2487.7,0.40242]
[1729980954418,2.12752966,2487.8,2487.7,0.40242]
[1729980956610,2.12752966,2487.8,2487.7,0.80802]
[1729980964015,1.30252966,2487.8,2487.7,0.80802]
[1729980964216,2.12752966,2487.8,2487.7,0.80802]
[1729980975237,2.12752966,2487.8,2487.7,0.93386908]
[1729980975644,3.2078,2488.1,2487.7,4.55144908]
[1729980975835,0.825,2488.2,2487.8,1.33323851]
[1729980976030,1.30252966,2488.0,2487.9,0.77098851]
[1729980976232,1.30252966,2488.0,2487.9,1.17338851]
[1729980976441,1.30252966,2488.0,2487.9,5.19258851]
[1729980977142,1.30252966,2488.1,2488.0,0.40239]
[1729980977338,1.30252966,2488.1,2488.0,1.16757851]
[1729980977535,1.30252966,2488.1,2488.0,5.18677851]
[1729980977732,0.8658,2488.7,2488.6,0.40229]
[1729980977733,1.26808,2488.7,2488.6,0.40229]
[1729980977939,2.98772966,2488.7,2488.6,0.40229]
[1729980978437,2.54502966,2488.7,2488.6,0.40229]
[1729980978642,0.825,2488.7,2488.6,4.42069]
[1729980978842,2.12752966,2488.7,2488.6,4.5464902]
[1729980979344,2.12752966,2488.7,2488.6,4.42069]
[1729980979547,1.30252966,2488.7,2488.6,4.42069]
[1729980979736,1.30252966,2488.7,2488.6,4.546487]
[1729980980136,1.30252966,2488.7,2488.6,4.42069]
[1729980980547,1.30252966,2488.7,2488.6,0.40229]
[1729980981139,5.75072966,2488.7,2488.2,3.2078]
[1729980981343,1.30252966,2488.3,2488.2,3.61015]
[1729980981643,2.12752966,2488.3,2488.2,3.61015]
[1729980984449,2.12752966,2488.3,2488.2,0.40235]
[1729980988943,0.825,2488.3,2488.2,0.40235]
[1729980989142,2.12752966,2488.3,2488.2,0.40235]
[1729980991049,1.30252966,2488.3,2488.2,0.40235]
[1729980993662,1.72352966,2488.3,2488.2,0.40235]
[1729980996353,1.30252966,2488.3,2488.2,0.40235]
[1729980999252,1.30252966,2488.3,2488.2,1.70487966]
[1729980999859,2.12652966,2488.4,2488.3,0.40234]
[1729981000054,2.12652966,2488.4,2488.3,0.82524]
[1729981001052,1.30252966,2488.4,2488.3,0.82524]
[1729981015069,1.30252966,2488.4,2488.3,0.95105337]
[1729981015272,1.74332966,2488.4,2488.3,0.52815337]
[1729981017074,1.74332966,2488.4,2488.3,0.40234]
[1729981017278,1.74332966,2488.4,2488.3,0.52815488]
[1729981021472,1.74332966,2488.4,2488.3,0.72945717]
[1729981023077,1.74332966,2488.4,2488.3,0.52815488]
[1729981023277,1.74332966,2488.4,2488.3,0.72945566]
[1729981023679,1.74332966,2488.4,2488.3,0.72945435]
[1729981024585,1.74332966,2488.4,2488.3,0.52815321]
[1729981025385,1.74332966,2488.4,2488.3,0.72945552]
[1729981027078,4.95112966,2488.4,2488.0,3.2078]
[1729981027389,1.70489966,2488.1,2488.0,3.2078]
[1729981027574,1.70489966,2488.1,2488.0,3.33363259]
[1729981029079,1.70489966,2488.1,2488.0,3.73602259]
[1729981029679,1.70489966,2488.1,2488.0,3.33363259]
[1729981030187,1.30252966,2488.1,2488.0,3.73602259]
[1729981030392,1.70489966,2488.1,2488.0,3.73602259]
[1729981030581,2.11359966,2488.1,2488.0,3.73602259]
[1729981031287,2.11359966,2488.1,2488.0,3.73602185]
[1729981031888,2.11359966,2488.1,2488.0,0.52822185]
[1729981034998,2.11359966,2488.1,2488.0,0.52822555]
[1729981035886,0.81107,2488.1,2488.0,0.52822555]
[1729981036191,1.25084,2488.3,2488.2,0.40235]
[1729981036386,1.68534,2488.3,2488.2,0.40235]
[1729981036587,1.283,2488.3,2488.2,0.40235]
[1729981036784,1.68534,2488.3,2488.2,0.40235]
[1729981037885,2.98786966,2488.3,2488.2,0.40235]
[1729981046090,1.72072966,2488.3,2488.2,0.40235]
[1729981046295,2.54472966,2488.3,2488.2,0.83965]
[1729981046594,2.12652966,2488.3,2488.2,0.83965]
[1729981046992,1.2765,2488.6,2488.5,0.40231]
[1729981047192,3.40302966,2488.6,2488.5,0.40231]
[1729981047497,3.2078,2488.7,2488.6,0.40229]
[1729981047696,4.51032966,2488.7,2488.6,1.25059]
[1729981047895,4.51032966,2488.7,2488.6,1.69289]
[1729981048701,1.30252966,2488.9,2488.6,6.73732054]
[1729981048997,1.30252966,2488.9,2488.7,1.42832139]
[1729981049190,1.30252966,2488.9,2488.8,0.40226]
[1729981049392,1.30252966,2488.9,2488.8,4.42066]
[1729981050093,1.30252966,2488.9,2488.8,4.54644208]
[1729981051199,1.30252966,2488.9,2488.8,4.42066]
[1729981051394,1.22616,2489.4,2489.3,0.40217]
[1729981051600,2.12652966,2489.4,2489.3,0.40217]
[1729981052393,0.824,2489.4,2489.3,0.40217]
[1729981052593,2.12652966,2489.4,2489.3,0.40217]
[1729981053501,1.30252966,2489.4,2489.3,0.40217]
[1729981056198,1.30252966,2489.4,2489.2,0.4136]
[1729981056499,0.40222,2489.1,2488.9,0.40223]
[1729981056700,1.30252966,2489.0,2488.9,0.40223]
[1729981057104,1.70474966,2489.0,2488.9,0.40223]
[1729981057401,1.30252966,2489.0,2488.9,0.40223]
[1729981058197,2.12652966,2489.0,2488.6,1.2936]
[1729981058398,1.30252966,2488.7,2488.6,1.69589]
[1729981058812,1.30252966,2488.8,2488.6,2.59612966]
[1729981059012,1.30252966,2488.8,2488.7,0.40227]
[1729981080411,1.74672966,2488.8,2488.7,0.40227]
[1729981082616,0.4442,2488.8,2488.7,0.40227]
[1729981083421,1.74672966,2488.8,2488.7,0.40227]
[1729981091116,1.74672966,2488.8,2488.7,0.52806133]
[1729981094719,1.74672966,2488.8,2488.7,0.72932723]
[1729981094923,1.74672966,2488.8,2488.7,0.52806133]
[1729981095830,1.74672966,2488.8,2488.7,0.72932511]
[1729981097323,1.74672966,2488.8,2488.7,0.52806133]
[1729981097940,1.74672966,2488.8,2488.7,0.40227]
[1729981098238,1.74672966,2488.8,2488.7,0.52806076]
[1729981099129,1.74672966,2488.8,2488.7,0.72932989]
[1729981099327,1.74672966,2488.8,2488.7,0.52806257]
[1729981100231,1.74672966,2488.8,2488.7,0.7293313]
[1729981102532,1.74672966,2488.8,2488.7,0.40227]
[1729981102831,1.74672966,2488.8,2488.7,0.72932999]
[1729981110140,1.74672966,2488.8,2488.7,0.72933188]
[1729981113644,1.74672966,2488.8,2488.7,0.40227]
[1729981113847,1.74672966,2488.8,2488.7,0.72932956]
[1729981117641,1.74672966,2488.8,2488.7,0.72932432]
[1729981125453,0.4442,2488.8,2488.7,0.72932432]
[1729981125852,0.4442,2488.8,2488.7,0.7293245]
[1729981133850,0.4442,2488.8,2488.7,0.40227]
[1729981134053,0.4442,2488.8,2488.7,0.72932915]
[1729981138170,0.4442,2488.8,2488.7,0.72933021]
[1729981140869,0.84646,2488.8,2488.7,0.72933021]
[1729981141067,2.14898966,2488.8,2488.7,0.72933021]
[1729981141268,2.14898966,2488.8,2488.7,0.7293479]
[1729981145066,1.74672966,2488.8,2488.7,0.7293479]
[1729981149179,1.74672966,2488.8,2488.7,0.72934324]
[1729981149770,2.14898966,2488.8,2488.7,0.72934324]
[1729981149981,1.74672966,2488.8,2488.7,0.72934324]
[1729981150374,2.14898966,2488.8,2488.7,0.72934324]
[1729981150877,1.74672966,2488.8,2488.7,0.72934324]
[1729981152980,1.74672966,2488.8,2488.7,0.72934398]
[1729981156985,1.74672966,2488.8,2488.7,0.7293427]
[1729981158084,1.74672966,2488.8,2488.7,0.72934507]
[1729981158284,1.74672966,2488.8,2488.7,0.72934525]
[1729981160582,2.14898966,2488.8,2488.7,0.72934525]
[1729981160883,1.74672966,2488.8,2488.7,0.72934525]
[1729981164484,1.74672966,2488.8,2488.7,0.72934223]
[1729981167094,1.74672966,2488.8,2488.7,1.14004223]
[1729981167396,1.74672966,2488.8,2488.7,1.14004366]
[1729981171091,2.14898966,2488.8,2488.7,1.14004366]
[1729981171291,2.14898966,2488.8,2488.7,0.93876756]
[1729981172000,1.74672966,2488.8,2488.7,1.1400391]
[1729981172398,1.74672966,2488.8,2488.7,1.14004369]
[1729981176397,2.14898966,2488.8,2488.7,1.14004369]
[1729981176599,1.74672966,2488.8,2488.7,1.14004369]
[1729981179699,1.74672966,2488.8,2488.7,0.81297]
[1729981180002,1.74672966,2488.8,2488.7,1.14004251]
[1729981183502,1.74672966,2488.8,2488.7,0.81297]
[1729981183703,1.74672966,2488.8,2488.7,1.14004254]
[1729981191410,1.74672966,2488.8,2488.7,1.14004424]
[1729981195209,1.74672966,2488.8,2488.7,0.81297]
[1729981195513,1.74672966,2488.8,2488.7,1.14004399]
[1729981199213,1.74672966,2488.8,2488.7,0.81297]
[1729981199414,1.74672966,2488.8,2488.7,1.14004358]
[1729981199714,2.56972966,2488.8,2488.7,1.14004358]
[1729981200314,2.97198966,2488.8,2488.7,0.32707358]
[1729981200515,2.97198966,2488.8,2488.7,0.72934358]
[1729981200919,2.56972966,2488.8,2488.7,0.72934358]
[1729981202221,2.56972966,2488.8,2488.7,0.72934658]
[1729981206326,2.56972966,2488.8,2488.7,0.72934452]
[1729981207115,2.97198966,2488.8,2488.7,0.72934452]
[1729981208716,2.97198966,2488.8,2488.7,0.72934671]
[1729981210526,2.97198966,2488.8,2488.7,0.52806789]
[1729981211024,2.97198966,2488.8,2488.7,0.72934623]
[1729981214116,2.97198966,2488.8,2488.7,0.72934729]
[1729981214519,3.2078,2489.3,2488.7,10.71893716]
[1729981214826,4.51032966,2489.6,2489.5,0.40214]
[1729981215029,4.51032966,2489.6,2489.5,0.72915563]
[1729981215227,4.51032966,2489.6,2489.5,0.52793896]
[1729981216320,4.51032966,2489.6,2489.5,0.40214]
[1729981216531,4.51032966,2489.6,2489.5,0.52789709]
[1729981217228,4.51032966,2489.6,2489.5,0.40214]
[1729981217428,3.2078,2489.6,2489.5,5.84722288]
[1729981217727,2.12552966,2489.8,2489.7,0.40211]
[1729981217923,1.30252966,2489.8,2489.7,0.40211]
[1729981218121,1.30252966,2489.8,2489.7,0.52785647]
[1729981218320,1.30252966,2489.8,2489.7,0.82281]
[1729981225520,0.81944,2490.2,2489.7,5.74002966]
[1729981225726,1.30252966,2490.1,2489.8,1.71562966]
[1729981225925,1.30252966,2490.1,2490.0,0.40205]
[1729981227225,1.30252966,2490.1,2489.8,0.4131]
[1729981227430,0.40206,2490.1,2490.0,0.40206]
[1729981227628,1.70458966,2490.1,2490.0,0.40206]
[1729981227826,1.30252966,2490.1,2490.0,0.40206]
[1729981228531,1.30252966,2490.1,2489.8,0.4131]
[1729981228732,1.30252966,2489.9,2489.8,0.8152]
[1729981230533,1.30252966,2490.0,2489.9,0.40208]
[1729981234522,2.54192966,2490.2,2490.1,0.40205]
[1729981236530,4.51032966,2490.3,2490.2,0.40203]
[1729981236731,5.33232966,2490.3,2490.2,1.25083]
[1729981237232,5.76812966,2490.3,2490.2,1.25083]
[1729981237838,6.17013966,2490.3,2490.2,1.25083]
[1729981238331,6.17013966,2490.3,2490.2,0.40203]
[1729981239941,2.96233966,2490.3,2490.2,0.40203]
[1729981241536,1.2578,2490.3,2490.2,0.40203]
[1729981241741,2.56032966,2490.3,2490.2,0.40203]
[1729981241942,2.96233966,2490.3,2490.2,0.40203]
[1729981243136,2.14033966,2490.3,2490.2,0.40203]
[1729981243340,2.96233966,2490.3,2490.2,0.40203]
[1729981243542,0.40204,2490.2,2490.1,0.40203]
[1729981243735,1.30252966,2490.2,2490.1,0.40203]
[1729981247433,1.70455966,2490.2,2490.1,0.40203]
[1729981247840,1.30252966,2490.2,2490.1,0.40203]
[1729981248835,1.30252966,2490.8,2490.2,1.00509]
[1729981249046,0.40195,2490.7,2490.6,0.40195]
[1729981249240,1.70447966,2490.7,2490.6,0.40195]
[1729981249431,1.70447966,2490.7,2490.6,0.82995]
[1729981252838,1.70447966,2490.7,2490.6,0.428]
[1729981255042,1.70447966,2490.7,2490.5,0.40197]
[1729981255043,0.402,2490.4,2490.3,1.2698]
[1729981255249,1.70452966,2490.4,2490.3,1.2698]
[1729981255648,1.70452966,2490.4,2490.3,0.4405]
[1729981255845,0.40201,2490.3,2490.2,0.81163]
[1729981256044,0.82791,2490.3,2490.2,2.11415966]
[1729981256250,2.13043966,2490.3,2490.2,0.4096]
[1729981256556,1.72842966,2490.3,2489.9,1.30252966]
[1729981256743,0.40205,2490.1,2490.0,0.40205]
[1729981256942,0.40205,2490.1,2489.9,0.4096]
[1729981256943,0.40206,2490.0,2489.9,0.4096]
[1729981257143,0.82796,2490.0,2489.9,0.81168]
[1729981257343,0.82796,2490.0,2489.8,1.70460966]
[1729981257545,2.13048966,2490.0,2489.9,0.40208]
[1729981265950,0.40208,2489.9,2489.8,1.70460966]
[1729981266150,2.13049966,2490.0,2489.9,0.40208]
[1729981266655,2.13049966,2490.0,2489.9,0.81438]
[1729981268244,2.13049966,2490.0,2489.9,0.4123]
[1729981268858,0.4021,2489.8,2489.7,1.27911]
[1729981269052,1.70462966,2489.8,2489.7,1.27911]
[1729981270760,1.70462966,2489.8,2489.7,2.58163966]
[1729981271650,0.4021,2489.8,2489.7,2.58163966]
[1729981272861,0.4021,2489.8,2489.7,1.27911]
[1729981273657,1.30252966,2489.9,2489.7,0.877]
[1729981273858,1.70461966,2489.9,2489.8,0.4021]
[1729981274260,1.30252966,2489.9,2489.7,0.4459]
[1729981274565,1.2589,2489.8,2489.7,0.40211]
[1729981278154,1.70461966,2489.9,2489.6,1.71482966]
[1729981278358,1.70461966,2489.9,2489.8,0.4021]
[1729981278557,0.40211,2489.8,2489.7,0.4021]
[1729981278763,1.30252966,2489.7,2489.5,0.4473]
[1729981279063,2.12474966,2489.7,2489.6,0.40213]
[1729981280860,2.12474966,2489.7,2489.5,1.74982966]
[1729981280861,0.40213,2489.6,2489.5,2.15195966]
[1729981281670,2.12474966,2489.7,2489.6,0.40213]
[1729981283962,0.40213,2489.6,2489.5,0.84943]
[1729981284162,1.70465966,2489.6,2489.5,0.84943]
[1729981284371,2.14005966,2489.6,2489.5,0.84943]
[1729981284568,2.96205966,2489.6,2489.5,0.84943]
[1729981285363,2.55992966,2489.6,2489.4,1.25745]
[1729981285570,2.55992966,2489.6,2488.9,1.00559]
[1729981285571,4.51032966,2489.5,2489.2,0.4258]
[1729981285771,1.70469966,2489.4,2489.3,0.40216]
[1729981286069,2.11479966,2489.4,2489.3,0.82886]
[1729981286673,1.71262966,2489.4,2489.3,0.82886]
[1729981286869,0.4101,2489.4,2489.3,0.82886]
[1729981287469,0.81226,2489.4,2489.3,0.82886]
[1729981288765,3.2078,2489.5,2489.4,0.40216]
[1729981288971,3.2078,2489.5,2489.4,6.16018966]
[1729981289171,1.70462966,2489.8,2489.7,0.40211]
[1729981289867,1.70462966,2489.8,2489.7,1.25791]
[1729981290273,2.52662966,2489.8,2489.7,1.25791]
[1729981301169,2.52662966,2489.8,2489.7,0.8558]
[1729981301373,2.12452966,2489.8,2489.6,0.40212]
[1729981301576,2.94833966,2489.7,2489.6,0.40212]
[1729981302469,0.40214,2489.5,2489.4,1.24585]
[1729981302669,1.70466966,2489.5,2489.4,1.37161084]
[1729981307176,1.30252966,2489.5,2489.4,1.37161084]
[1729981307675,1.30252966,2489.5,2489.4,1.37161092]
[1729981310076,1.70466966,2489.6,2489.5,0.40214]
[1729981314494,1.70466966,2489.6,2489.5,0.52789884]
[1729981314992,1.70466966,2489.6,2489.5,0.40214]
[1729981315192,1.70466966,2489.6,2489.5,0.52789887]
[1729981318695,1.70466966,2489.6,2489.5,0.40214]
[1729981318995,1.70466966,2489.6,2489.5,0.52789674]
[1729981325098,1.70466966,2489.6,2489.5,0.40214]
[1729981325299,1.70466966,2489.6,2489.5,0.52789695]
[1729981325688,1.70466966,2489.6,2489.5,0.12575695]
[1729981326094,1.70466966,2489.6,2489.5,0.52789695]
[1729981327394,1.70466966,2489.6,2489.5,0.12575695]
[1729981327898,1.70466966,2489.6,2489.5,0.52789695]
[1729981328293,5.72146966,2489.6,2489.5,0.52789695]
[1729981328489,5.72146966,2489.6,2489.2,0.40219]
[1729981328695,1.70470966,2489.3,2489.2,0.40219]
[1729981328890,2.52670966,2489.3,2489.2,0.52795641]
[1729981329998,3.35550966,2489.3,2489.2,0.52795641]
[1729981330801,3.35550966,2489.3,2489.2,0.12576641]
[1729981331104,3.35550966,2489.3,2489.2,0.40219]
[1729981332403,0.40219,2489.2,2489.1,1.647]
[1729981332606,1.70471966,2489.2,2489.1,1.77277638]
[1729981335902,1.70471966,2489.2,2489.1,1.77277708]
[1729981336400,1.70471966,2489.2,2489.1,1.647]
[1729981336604,1.70471966,2489.2,2489.1,1.77277649]
[1729981337303,1.70471966,2489.2,2489.1,1.647]
[1729981338601,0.40223,2489.0,2488.9,0.40223]
[1729981338801,1.70475966,2489.0,2488.9,0.5280142]
[1729981339606,1.70475966,2489.0,2488.9,0.40223]
[1729981340008,1.70475966,2489.0,2488.9,0.52801973]
[1729981340306,1.70475966,2489.0,2488.9,0.40223]
[1729981340501,0.4097,2489.1,2488.7,0.8715]
[1729981340711,1.70475966,2489.0,2488.9,0.40223]
[1729981340901,0.4097,2489.1,2488.9,1.30252966]
[1729981341103,0.4097,2489.1,2488.8,0.4224]
[1729981341104,1.30252966,2489.1,2489.0,5.72234966]
[1729981341301,1.30252966,2489.1,2489.0,1.70474966]
[1729981341498,1.30252966,2489.1,2489.0,5.72234966]
[1729981342002,3.2078,2489.9,2489.0,5.64714024]
[1729981342203,3.2078,2489.9,2489.7,0.40211]
[1729981342204,2.52663966,2489.8,2489.7,0.40211]
[1729981342396,2.52663966,2489.8,2489.7,0.81751]
[1729981342601,2.52663966,2489.8,2489.7,1.24201]
[1729981342797,2.52663966,2489.8,2489.7,0.8399]
[1729981343202,1.70463966,2489.8,2489.7,0.8399]
[1729981343508,2.52663966,2489.8,2489.7,0.8399]
[1729981350011,0.40218,2489.3,2489.2,0.40219]
[1729981350210,1.70470966,2489.3,2489.2,1.38625066]
[1729981353810,1.70470966,2489.3,2489.2,1.81045066]
[1729981354009,1.30252966,2489.3,2489.2,1.81045066]
[1729981354214,1.70470966,2489.3,2489.2,1.81045066]
[1729981357916,1.30252966,2489.3,2489.2,1.81045066]
[1729981358116,1.70470966,2489.3,2489.2,1.81045066]
[1729981359822,1.70470966,2489.3,2489.2,1.81045586]
[1729981360518,1.30252966,2489.3,2489.2,1.81045586]
[1729981361021,1.70470966,2489.3,2489.2,1.81045586]
[1729981362220,1.30252966,2489.3,2489.2,1.81045586]
[1729981362819,1.70470966,2489.3,2489.2,1.81045586]
[1729981363222,2.12580966,2489.3,2489.2,1.81045586]
[1729981363420,2.12580966,2489.3,2489.2,1.68469]
[1729981363620,2.12580966,2489.3,2489.2,1.81045789]
[1729981366125,1.72362966,2489.3,2489.2,1.81045789]
[1729981366531,2.12580966,2489.3,2489.2,1.81045789]
[1729981367031,0.82328,2489.3,2489.2,1.81045789]
[1729981367824,0.82328,2489.3,2489.2,3.11298755]
[1729981367825,0.4211,2489.3,2489.2,3.11298755]
[1729981370430,0.82328,2489.3,2489.2,3.11298755]
[1729981370928,0.82328,2489.3,2489.2,2.98721966]
[1729981371133,0.82328,2489.3,2489.2,3.1129877]
[1729981371335,0.4211,2489.3,2489.2,3.1129877]
[1729981378226,0.4211,2489.3,2489.2,3.11298714]
[1729981381435,0.82328,2489.3,2489.2,3.11298714]
[1729981384532,0.82328,2489.3,2489.2,3.11298704]
[1729981385032,0.4211,2489.3,2489.2,3.11298704]
[1729981385229,0.4211,2489.3,2489.2,2.98721966]
[1729981385430,0.4211,2489.3,2489.2,3.11298949]
[1729981385631,0.4211,2489.3,2489.2,3.31421614]
[1729981385836,0.4211,2489.3,2489.2,3.11298949]
[1729981386238,0.4211,2489.3,2489.2,3.31422003]
[1729981388142,0.4211,2489.3,2489.2,2.98721966]
[1729981388341,0.4211,2489.3,2489.2,3.31421972]
[1729981390443,0.4211,2489.3,2489.2,2.01169006]
[1729981391837,0.4211,2489.3,2489.2,2.01168728]
[1729981395438,0.4211,2489.3,2489.2,2.01168727]
[1729981396853,1.22316,2489.5,2489.4,0.40215]
[1729981397145,1.64996,2489.5,2489.4,0.52791818]
[1729981397643,3.2078,2489.6,2489.5,0.40214]
[1729981397843,0.821,2489.6,2489.5,2.03165265]
[1729981398842,0.821,2489.7,2489.5,5.64631265]
[1729981399046,0.821,2489.7,2489.6,2.87364265]
[1729981399548,0.821,2489.7,2489.6,2.67242784]
[1729981399950,0.821,2489.7,2489.6,1.36989818]
[1729981400243,0.821,2489.7,2489.2,5.79476268]
[1729981400244,0.40218,2489.3,2489.2,3.60999]
[1729981400545,1.70470966,2489.3,2489.2,0.52795729]
[1729981401536,1.30252966,2489.3,2489.2,0.52795729]
[1729981401941,1.74152966,2489.3,2489.2,0.52795729]
[1729981402347,0.439,2489.3,2489.2,1.83048695]
[1729981402536,0.84118,2489.3,2489.2,1.83048695]
[1729981402743,0.84118,2489.3,2489.2,1.83049099]
[1729981402744,0.439,2489.3,2489.2,1.83049099]
[1729981405741,0.439,2489.3,2489.2,2.03171727]
[1729981406144,0.439,2489.3,2489.2,1.83049099]
[1729981406345,0.439,2489.3,2489.2,1.70471966]
[1729981406548,0.439,2489.3,2489.2,1.83048845]
[1729981407347,0.439,2489.3,2489.2,2.03171903]
[1729981408641,0.439,2489.3,2489.2,1.70471966]
[1729981408847,0.821,2489.4,2489.3,0.40218]
[1729981409049,0.821,2489.4,2489.3,1.70470966]
[1729981409952,0.821,2489.4,2489.3,2.03168337]
[1729981410153,3.2078,2489.6,2489.5,0.40214]
[1729981410353,0.821,2489.6,2489.5,1.70466966]
[1729981410550,1.22313,2489.6,2489.5,1.70466966]
[1729981410750,0.821,2489.6,2489.5,1.70466966]
[1729981410952,3.2078,2489.9,2489.8,0.4021]
[1729981411258,3.2078,2489.9,2489.8,1.8303767]
[1729981411553,3.2078,2489.9,2489.8,1.70462966]
[1729981411854,3.2078,2489.9,2489.8,1.83037278]
[1729981412759,0.40205,2490.1,2489.8,1.83037278]
[1729981412760,4.44884,2490.2,2490.1,0.40205]
[1729981412951,5.26984,2490.2,2490.1,1.70457966]
[1729981413157,5.26984,2490.2,2490.1,0.40205]
[1729981414359,2.06204,2490.2,2490.1,0.40205]
[1729981415453,0.40205,2490.1,2490.0,1.70457966]
[1729981420869,1.66,2490.2,2490.0,1.30252966]
[1729981421060,1.64534,2490.2,2490.1,1.70457966]
[1729981422164,4.43082,2490.3,2490.2,0.40203]
[1729981422360,4.43082,2490.3,2490.2,1.70455966]
[1729981422361,3.60982,2490.3,2490.2,1.70455966]
[1729981422856,0.40202,2490.3,2490.2,1.70455966]
[1729981423058,1.226,2490.4,2490.2,1.30252966]
[1729981423261,1.22301,2490.4,2490.3,1.30252966]
[1729981423461,1.22301,2490.4,2490.3,2.13203966]
[1729981423862,1.22301,2490.4,2490.3,1.73002966]
[1729981424456,1.22301,2490.4,2490.3,2.13203966]
[1729981425163,4.43077,2490.6,2490.5,0.40198]
[1729981425365,4.43077,2490.6,2490.5,1.70450966]
[1729981425366,4.0288,2490.6,2490.5,1.70450966]
[1729981426466,3.2078,2490.6,2490.5,1.70450966]
[1729981427567,1.65195,2490.7,2490.5,1.30252966]
[1729981427764,3.60972,2490.9,2490.8,0.40193]
[1729981427970,0.82312,2490.9,2490.8,1.70445966]
[1729981429271,0.82312,2490.9,2490.8,1.30252966]
[1729981429470,0.40197,2490.6,2490.5,0.40197]
[1729981429670,0.40195,2490.7,2490.5,1.70449966]
[1729981429863,0.40195,2490.7,2490.5,0.40197]
[1729981429864,0.4081,2490.6,2490.5,0.40197]
[1729981430171,1.23127,2490.6,2490.5,0.40198]
[1729981430665,0.40198,2490.5,2490.4,0.82379]
[1729981431372,0.40198,2490.5,2490.4,1.70451966]
[1729981432364,0.402,2490.4,2490.3,0.402]
[1729981432578,0.8073,2490.4,2490.3,1.70452966]
[1729981441073,0.8073,2490.4,2490.2,0.40202]
[1729981441074,2.10982966,2490.4,2490.2,0.40202]
[1729981441274,0.40205,2490.1,2490.0,1.30252966]
[1729981442176,2.14735966,2490.2,2490.1,0.40205]
[1729981442477,0.84483,2490.2,2490.1,1.70457966]
[1729981442679,4.86083,2490.2,2490.1,1.30252966]
[1729981443075,4.86083,2490.2,2490.1,1.70457966]
[1729981443270,4.86083,2490.2,2490.1,1.30252966]
[1729981443470,4.86083,2490.2,2490.1,1.70457966]
[1729981443976,6.16335966,2490.2,2490.1,1.70457966]
[1729981445178,2.14735966,2490.2,2490.1,1.70457966]
[1729981447979,2.14735966,2490.2,2490.1,1.30252966]
[1729981448574,2.14735966,2490.2,2490.1,1.70457966]
[1729981449181,2.14735966,2490.2,2490.1,1.30252966]
[1729981450270,0.40207,2490.0,2489.9,1.70459966]
[1729981450681,1.74532966,2490.2,2489.9,1.30252966]
[1729981450890,0.40205,2490.1,2490.0,1.70457966]
[1729981452380,0.84484,2490.2,2490.1,0.40205]
[1729981452578,0.84484,2490.2,2490.1,1.70457966]
[1729981455480,0.40204,2490.2,2490.1,1.70457966]
[1729981455781,1.22304,2490.2,2490.1,1.70457966]
[1729981463585,0.821,2490.2,2490.0,1.30252966]
[1729981463789,0.40206,2490.1,2490.0,1.30252966]
[1729981464297,0.40206,2490.1,2490.0,1.70458966]
[1729981467893,0.40206,2490.1,2489.8,1.2913]
[1729981467894,8.52632966,2490.1,2489.8,1.2913]
[1729981468202,1.70460966,2489.9,2489.8,0.43]
[1729981468901,1.70460966,2489.9,2489.8,0.8321]
[1729981470308,0.40208,2489.9,2489.8,0.8321]
[1729981470612,0.40208,2489.9,2489.8,2.97432966]
[1729981473699,0.40208,2489.9,2489.8,1.6718]
[1729981479405,1.70460966,2489.9,2489.8,1.6718]
[1729981485209,1.70460966,2489.9,2489.8,1.2697]
[1729981487206,1.70460966,2489.9,2489.8,1.6718]
[1729981487807,1.70460966,2489.9,2489.8,1.2697]
[1729981489213,1.70460966,2489.9,2489.8,0.8548]
[1729981489520,2.14190966,2489.9,2489.8,0.8548]
[1729981491314,2.14190966,2489.9,2489.8,0.8548]
[1729981491711,2.14190966,2489.9,2489.8,1.2569]
[1729981491911,2.14190966,2489.9,2489.8,0.8548]
[1729981496622,1.70460966,2489.9,2489.8,1.2569]
[1729981497317,0.40208,2489.9,2489.8,1.2569]
[1729981497716,0.40208,2489.9,2489.8,1.6689]
[1729981503933,0.40208,2489.9,2489.8,1.2668]
[1729981505634,0.40208,2489.9,2489.8,1.6689]
[1729981506825,1.22308,2489.9,2489.8,1.6689]
[1729981507132,1.22308,2489.9,2489.8,1.79464676]
[1729981508224,1.22308,2489.9,2489.8,1.39254676]
[1729981508430,1.22308,2489.9,2489.8,1.79464676]
[1729981510138,1.22308,2489.9,2489.8,1.39254676]
[1729981510832,1.22308,2489.9,2489.8,1.79464676]
[1729981511839,1.22308,2489.9,2489.8,1.39254676]
[1729981512340,1.22308,2489.9,2489.8,1.79464676]
[1729981515944,0.40208,2489.9,2489.8,1.79464676]
[1729981516142,1.22308,2489.9,2489.8,1.79464676]
[1729981517936,1.22308,2489.9,2489.8,1.99583297]
[1729981518239,0.821,2489.9,2489.8,1.79464676]
[1729981518536,1.22308,2489.9,2489.8,1.79464676]
[1729981519839,1.22308,2489.9,2489.8,1.79464562]
[1729981520244,1.22308,2489.9,2489.8,1.99583817]
[1729981523439,1.22308,2489.9,2489.8,1.6689]
[1729981523644,1.22308,2489.9,2489.8,1.99583677]
[1729981527049,1.22308,2489.9,2489.8,1.79464491]
[1729981529646,0.821,2489.9,2489.8,1.79464491]
[1729981529845,0.40202,2490.3,2490.2,0.40202]
[1729981530044,1.00491,2490.7,2490.2,1.42827457]
[1729981530045,4.5316,2490.7,2490.2,1.42827457]
[1729981530245,1.70451966,2490.5,2490.3,1.85014491]
[1729981530455,1.70451966,2490.5,2490.3,1.7244]
[1729981530650,1.30252966,2490.4,2490.3,1.7244]
[1729981530945,1.30252966,2490.4,2490.3,1.85012256]
[1729981531246,1.30252966,2490.4,2490.3,1.3224]
[1729981531247,1.70452966,2490.4,2490.3,1.3224]
[1729981531459,0.40204,2490.2,2490.0,0.40205]
[1729981531750,0.40204,2490.2,2490.1,0.52777693]
[1729981531751,1.70456966,2490.2,2490.1,0.52777693]
[1729981532144,1.70456966,2490.2,2490.1,0.52777978]
[1729981532443,1.70456966,2490.2,2490.1,0.40205]
[1729981533848,1.70456966,2490.2,2490.1,0.52778138]
[1729981534150,1.70456966,2490.2,2490.1,0.12573138]
[1729981535556,1.70456966,2490.2,2490.1,0.52778138]
[1729981536247,1.70456966,2490.2,2490.1,0.40205]